[Event "The Elitserien 2024/25: round 1 - 3"]
[Site "Scandic Infra City, Kanalvagen 10, Upplands Vasby, Sweden"]
[Date "2024.10.04"]
[Round "1.26"]
[White "Johansson, Linus"]
[Black "Religa, Marek"]
[Result "1/2-1/2"]
[TimeControl "90 minutes for 40 moves + 30 minutes for the rest of the game + 30 seconds per move from move one."]
[WhiteTitle "IM"]
[WhiteFideId "1711113"]
[BlackFideId "1750208"]
[WhiteElo "2416"]
[BlackElo "2224"]

1. d4 {[%clk 01:30:58]} f5 {[%clk 01:30:12]} {[%emt 00:00:49]} 2. Nf3 {[%clk
01:31:09]} {[%emt 00:00:19]} Nf6 {[%clk 01:30:37]} {[%emt 00:00:06]} 3. g3
{[%clk 01:31:32]} {[%emt 00:00:06]} g6 {[%clk 01:30:28]} {[%emt 00:00:39]} 4.
Bg2 {[%clk 01:31:56]} {[%emt 00:00:05]} Bg7 {[%clk 01:30:54]} {[%emt 00:00:04]}
5. O-O {[%clk 01:32:20]} {[%emt 00:00:06]} O-O {[%clk 01:31:10]} {[%emt
00:00:15]} 6. c4 {[%clk 01:32:44]} {[%emt 00:00:04]} d6 {[%clk 01:31:14]}
{[%emt 00:00:28]} 7. Nc3 {[%clk 01:33:08]} {[%emt 00:00:05]} a5 {[%clk
01:26:07]} {[%emt 00:05:37]} 8. b3 {[%clk 01:32:19]} {[%emt 00:01:19]} e5
{[%clk 01:24:18]} {[%emt 00:02:20]} 9. dxe5 {[%clk 01:29:31]} {[%emt 00:03:17]}
dxe5 {[%clk 01:24:43]} {[%emt 00:00:05]} 10. Ba3 {[%clk 01:24:50]} {[%emt
00:05:11]} Qxd1 {[%clk 01:23:14]} {[%emt 00:01:59]} 11. Raxd1 {[%clk 01:24:22]}
{[%emt 00:00:58]} Re8 {[%clk 01:23:40]} {[%emt 00:00:04]} 12. e4 {[%clk
01:19:14]} {[%emt 00:05:38]} Nxe4 {[%clk 01:16:05]} {[%emt 00:08:04]} 13. Nxe4
{[%clk 01:19:14]} {[%emt 00:00:30]} fxe4 {[%clk 01:16:34]} {[%emt 00:00:01]} 14.
Ng5 {[%clk 01:19:05]} {[%emt 00:00:40]} Na6 {[%clk 01:05:11]} {[%emt 00:11:53]}
15. Bxe4 {[%clk 01:14:22]} {[%emt 00:05:12]} Bf6 {[%clk 00:51:50]} {[%emt
00:13:51]} 16. h4 {[%clk 01:11:06]} {[%emt 00:03:47]} Nb4 {[%clk 00:48:21]}
{[%emt 00:03:58]} 17. Rd2 {[%clk 01:03:37]} {[%emt 00:07:58]} c6 {[%clk
00:46:59]} {[%emt 00:01:52]} 18. Rfd1 {[%clk 01:03:44]} {[%emt 00:00:23]} Kg7
{[%clk 00:45:53]} {[%emt 00:01:37]} 19. Kg2 {[%clk 00:57:09]} {[%emt 00:07:05]}
h6 {[%clk 00:45:20]} {[%emt 00:01:03]} 20. Nf3 {[%clk 00:56:59]} {[%emt
00:00:39]} Bg4 {[%clk 00:45:20]} {[%emt 00:00:30]} 21. Re1 {[%clk 00:50:40]}
{[%emt 00:06:48]} Rad8 {[%clk 00:42:19]} {[%emt 00:03:33]} 22. Bc1 {[%clk
00:49:23]} {[%emt 00:01:46]} Na6 {[%clk 00:36:10]} {[%emt 00:06:39]} 23. Rxd8
{[%clk 00:46:05]} {[%emt 00:03:49]} Rxd8 {[%clk 00:36:33]} {[%emt 00:00:08]} 24.
Bb2 {[%clk 00:46:06]} {[%emt 00:00:28]} Bxf3+ {[%clk 00:29:44]} {[%emt
00:07:19]} 25. Bxf3 {[%clk 00:39:31]} {[%emt 00:07:04]} Rd2 {[%clk 00:25:36]}
{[%emt 00:04:40]} 26. Re2 {[%clk 00:39:37]} {[%emt 00:00:24]} Rxe2 {[%clk
00:23:47]} {[%emt 00:02:18]} 27. Bxe2 {[%clk 00:39:37]} {[%emt 00:00:30]} e4
{[%clk 00:22:49]} {[%emt 00:01:28]} 28. Bc1 {[%clk 00:39:58]} {[%emt 00:00:09]}
g5 {[%clk 00:21:45]} {[%emt 00:01:35]} 29. Bd2 {[%clk 00:34:59]} {[%emt
00:05:27]} a4 {[%clk 00:19:54]} {[%emt 00:02:22]} 30. bxa4 {[%clk 00:25:26]}
{[%emt 00:10:03]} gxh4 {[%clk 00:19:59]} {[%emt 00:00:26]} 31. gxh4 {[%clk
00:25:24]} {[%emt 00:00:31]} Bxh4 {[%clk 00:20:04]} {[%emt 00:00:25]} 32. Bg4
{[%clk 00:25:36]} {[%emt 00:00:18]} Bg5 {[%clk 00:19:00]} {[%emt 00:01:35]} 33.
Ba5 {[%clk 00:23:46]} {[%emt 00:02:19]} Nc5 {[%clk 00:14:28]} {[%emt 00:05:02]}
34. Bc8 {[%clk 00:23:47]} {[%emt 00:00:29]} Bf6 {[%clk 00:10:12]} {[%emt
00:04:47]} 35. Bc7 {[%clk 00:21:02]} {[%emt 00:03:14]} b6 {[%clk 00:05:42]}
{[%emt 00:05:02]} 36. Bxb6 {[%clk 00:15:08]} {[%emt 00:06:23]} Nxa4 {[%clk
00:06:10]} {[%emt 00:00:01]} 37. Ba7 {[%clk 00:15:29]} {[%emt 00:00:08]} Nb2
{[%clk 00:02:36]} {[%emt 00:04:05]} 38. Bb7 {[%clk 00:11:21]} {[%emt 00:04:38]}
Nxc4 {[%clk 00:02:48]} {[%emt 00:00:18]} 39. Bxc6 {[%clk 00:11:45]} {[%emt
00:00:06]} Nd6 {[%clk 00:01:13]} {[%emt 00:02:05]} 40. a4 {[%clk 00:11:25]}
{[%emt 00:00:50]} Bd8 {[%clk 00:00:36]} {[%emt 00:01:08]} 41. Bb8 {[%clk
00:08:19]} {[%emt 00:03:35]} Nc4 {[%clk 00:21:52]} {[%emt 00:09:16]} 42. Bxe4
{[%clk 00:38:32]} {[%emt 00:00:16]} Kf6 {[%clk 00:21:49]} {[%emt 00:00:33]} 43.
Bc2 {[%clk 00:32:24]} {[%emt 00:06:39]} Bb6 {[%clk 00:21:47]} {[%emt 00:00:31]}
44. Bf4 {[%clk 00:32:19]} {[%emt 00:00:35]} h5 {[%clk 00:21:50]} {[%emt
00:00:28]} 45. Bb3 {[%clk 00:32:35]} {[%emt 00:00:13]} Ne5 {[%clk 00:21:51]}
{[%emt 00:00:28]} 46. Bd2 {[%clk 00:32:40]} {[%emt 00:00:25]} Ng4 {[%clk
00:17:19]} {[%emt 00:05:03]} 47. Be1 {[%clk 00:28:18]} {[%emt 00:04:52]} Kg5
{[%clk 00:15:30]} {[%emt 00:02:18]} 48. a5 {[%clk 00:28:07]} {[%emt 00:00:41]}
Ba7 {[%clk 00:15:43]} {[%emt 00:00:16]} 49. Be6 {[%clk 00:27:55]} {[%emt
00:00:44]} Ne5 {[%clk 00:14:56]} {[%emt 00:01:16]} 50. Bc8 {[%clk 00:22:53]}
{[%emt 00:05:32]} Nd3 {[%clk 00:13:53]} {[%emt 00:01:33]} 51. Bd2+ {[%clk
00:23:15]} {[%emt 00:00:09]} Kf6 {[%clk 00:14:15]} {[%emt 00:00:09]} 52. f4
{[%clk 00:22:37]} {[%emt 00:01:06]} Nc5 {[%clk 00:13:13]} {[%emt 00:01:34]} 53.
Kf3 {[%clk 00:19:59]} {[%emt 00:03:07]} Nb3 {[%clk 00:11:17]} {[%emt 00:02:26]}
54. Bc3+ {[%clk 00:20:05]} {[%emt 00:00:23]} Ke7 {[%clk 00:11:37]} {[%emt
00:00:11]} 55. Ba6 {[%clk 00:17:03]} {[%emt 00:03:31]} Bd4 {[%clk 00:10:54]}
{[%emt 00:01:12]} 56. Be1 {[%clk 00:17:00]} {[%emt 00:00:34]} Kd6 {[%clk
00:10:20]} {[%emt 00:01:03]} 57. Bc4 {[%clk 00:17:00]} {[%emt 00:00:32]} Nc5
{[%clk 00:10:24]} {[%emt 00:00:25]} 58. Bf7 {[%clk 00:13:41]} {[%emt 00:03:48]}
h4 {[%clk 00:10:47]} {[%emt 00:00:05]} 59. Bxh4 {[%clk 00:11:41]} {[%emt
00:02:33]} Bc3 {[%clk 00:10:37]} {[%emt 00:00:40]} 60. Bd8 {[%clk 00:11:44]}
{[%emt 00:00:26]} Kd7 {[%clk 00:08:47]} {[%emt 00:02:20]} 61. Bb6 {[%clk
00:11:43]} {[%emt 00:00:31]} Na4 {[%clk 00:09:05]} {[%emt 00:00:12]} 62. Bd5
{[%clk 00:10:45]} {[%emt 00:01:28]} Kd6 {[%clk 00:08:42]} {[%emt 00:00:54]} 63.
Be4 {[%clk 00:10:58]} {[%emt 00:00:16]} Ke6 {[%clk 00:07:35]} {[%emt 00:01:37]}
64. Ke3 {[%clk 00:09:39]} {[%emt 00:01:49]} Nxb6 {[%clk 00:06:57]} {[%emt
00:01:08]} 65. axb6 {[%clk 00:10:07]} {[%emt 00:00:03]} Ba5 {[%clk 00:07:18]}
{[%emt 00:00:08]} 66. b7 {[%clk 00:10:30]} {[%emt 00:00:07]} Bc7 {[%clk
00:07:37]} {[%emt 00:00:10]} 67. f5+ {[%clk 00:10:30]} {[%emt 00:00:31]} Ke5
{[%clk 00:07:51]} {[%emt 00:00:17]} 68. Kd3 {[%clk 00:10:33]} {[%emt 00:00:26]}
Bb8 {[%clk 00:06:40]} {[%emt 00:01:41]} 69. Kc4 {[%clk 00:10:50]} {[%emt
00:00:12]} Ba7 {[%clk 00:04:41]} {[%emt 00:02:30]} 70. Kb5 {[%clk 00:10:37]}
{[%emt 00:00:43]} Kd6 {[%clk 00:04:34]} {[%emt 00:00:37]} 71. Ka6 {[%clk
00:10:47]} {[%emt 00:00:19]} Bb8 {[%clk 00:04:52]} {[%emt 00:00:12]} 72. Kb6
{[%clk 00:11:07]} {[%emt 00:00:10]} Kd7 {[%clk 00:04:02]} {[%emt 00:01:20]} 73.
Bd5 {[%clk 00:08:03]} {[%emt 00:03:33]} Ke7 {[%clk 00:04:22]} {[%emt 00:00:10]}
74. Be6 {[%clk 00:08:22]} {[%emt 00:00:12]} Kd6 {[%clk 00:04:01]} {[%emt
00:00:51]} 75. Bc4 {[%clk 00:07:47]} {[%emt 00:01:06]} Ke5 {[%clk 00:03:56]}
{[%emt 00:00:35]} 76. Bd3 {[%clk 00:08:02]} {[%emt 00:00:13]} Kd6 {[%clk
00:04:22]} {[%emt 00:00:05]} 77. Bf1 {[%clk 00:08:27]} {[%emt 00:00:05]} Kd7
{[%clk 00:03:59]} {[%emt 00:00:54]} 78. Bh3 {[%clk 00:08:48]} {[%emt 00:00:07]}
Ke7 {[%clk 00:04:18]} {[%emt 00:00:10]} 79. Bg4 {[%clk 00:09:12]} {[%emt
00:00:07]} Kf6 {[%clk 00:04:00]} {[%emt 00:00:48]} 80. Kc6 {[%clk 00:09:27]}
{[%emt 00:00:14]} Ke7 {[%clk 00:04:26]} {[%emt 00:00:04]} 81. Be2 {[%clk
00:09:40]} {[%emt 00:00:17]} Be5 {[%clk 00:04:17]} {[%emt 00:00:40]} 82. Bc4
{[%clk 00:10:02]} {[%emt 00:00:07]} Bg3 {[%clk 00:04:22]} {[%emt 00:00:26]} 83.
Be6 {[%clk 00:10:24]} {[%emt 00:00:07]} Bh2 {[%clk 00:04:08]} {[%emt 00:00:44]}
84. Bc8 {[%clk 00:10:45]} {[%emt 00:00:09]} Bg3 {[%clk 00:04:13]} {[%emt
00:00:26]} 85. Kd5 {[%clk 00:11:07]} {[%emt 00:00:07]} Bh2 {[%clk 00:04:19]}
{[%emt 00:00:23]} 86. Ke4 {[%clk 00:11:29]} {[%emt 00:00:09]} Kf6 {[%clk
00:04:34]} {[%emt 00:00:15]} 87. Kf3 {[%clk 00:11:53]} {[%emt 00:00:06]} Kg5
{[%clk 00:04:35]} {[%emt 00:00:29]} 88. Ke3 {[%clk 00:12:16]} {[%emt 00:00:06]}
Kf6 {[%clk 00:04:37]} {[%emt 00:00:29]} 89. Be6 {[%clk 00:12:33]} {[%emt
00:00:13]} Bb8 {[%clk 00:04:18]} {[%emt 00:00:49]} 90. Ke4 {[%clk 00:12:56]}
{[%emt 00:00:07]} Bh2 {[%clk 00:04:15]} {[%emt 00:00:33]} 91. Kf3 {[%clk
00:12:14]} {[%emt 00:01:11]} Kg5 {[%clk 00:04:26]} {[%emt 00:00:20]} 92. Bd7
{[%clk 00:12:37]} {[%emt 00:00:06]} Bb8 {[%clk 00:04:33]} {[%emt 00:00:23]} 93.
Bc8 {[%clk 00:12:59]} {[%emt 00:00:08]} Bh2 {[%clk 00:04:39]} {[%emt 00:00:25]}
94. Ke3 {[%clk 00:13:19]} {[%emt 00:00:10]} Kf6 {[%clk 00:04:45]} {[%emt
00:00:25]} 95. Kd4 {[%clk 00:13:42]} {[%emt 00:00:05]} Ke7 {[%clk 00:04:44]}
{[%emt 00:00:33]} 96. Kc5 {[%clk 00:14:05]} {[%emt 00:00:07]} Bg3 {[%clk
00:04:31]} {[%emt 00:00:43]} 97. Kc6 {[%clk 00:14:25]} {[%emt 00:00:09]} Bh2
{[%clk 00:04:50]} {[%emt 00:00:11]} 98. Be6 {[%clk 00:14:36]} {[%emt 00:00:18]}
Bg3 {[%clk 00:04:28]} {[%emt 00:00:53]} 99. Ba2 {[%clk 00:14:58]} {[%emt
00:00:08]} Bh2 {[%clk 00:04:44]} {[%emt 00:00:15]} 100. Kb6 {[%clk 00:15:08]}
{[%emt 00:00:20]} Bb8 {[%clk 00:05:06]} {[%emt 00:00:09]} 101. Bb1 {[%clk
00:15:32]} {[%emt 00:00:05]} Kd6 {[%clk 00:04:15]} {[%emt 00:01:18]} 102. Bc2
{[%clk 00:15:55]} {[%emt 00:00:10]} Ke7 {[%clk 00:03:47]} {[%emt 00:00:58]} 103.
Bd1 {[%clk 00:16:17]} {[%emt 00:00:07]} Kd6 {[%clk 00:03:45]} {[%emt 00:00:32]}
104. Be2 {[%clk 00:16:37]} {[%emt 00:00:10]} Ke7 {[%clk 00:03:10]} {[%emt
00:01:05]} 105. Bg4 {[%clk 00:17:01]} {[%emt 00:00:06]} Kf6 {[%clk 00:03:23]}
{[%emt 00:00:17]} 106. Bh3 {[%clk 00:17:25]} {[%emt 00:00:06]} Ke7 {[%clk
00:03:42]} {[%emt 00:00:11]} 107. Kc6 {[%clk 00:17:50]} {[%emt 00:00:05]} Bh2
{[%clk 00:04:00]} {[%emt 00:00:12]} 108. f6+ {[%clk 00:18:13]} {[%emt
00:00:06]} Kxf6 {[%clk 00:04:20]} {[%emt 00:00:09]} 109. Kd7 {[%clk 00:18:41]}
{[%emt 00:00:04]} Bg3 {[%clk 00:04:39]} {[%emt 00:00:12]} 110. Kc8 {[%clk
00:19:06]} {[%emt 00:00:05]} Ke7 {[%clk 00:05:01]} {[%emt 00:00:09]} 111. b8=N
{[%clk 00:19:29]} {[%emt 00:00:04]} Bxb8 {[%clk 00:05:21]} {[%emt 00:00:11]}
112. Kxb8 {[%emt 00:00:05]} Ke8 {[%emt 00:01:06]} 1/2-1/2

[Event "The Elitserien 2024/25: round 1 - 3"]
[Site "Scandic Infra City, Kanalvagen 10, Upplands Vasby, Sweden"]
[Date "2024.10.04"]
[Round "1.27"]
[White "Lindh, Fredrik"]
[Black "Jepson, Christian"]
[Result "0-1"]
[TimeControl "90 minutes for 40 moves + 30 minutes for the rest of the game + 30 seconds per move from move one."]
[WhiteTitle "FM"]
[BlackTitle "IM"]
[WhiteFideId "1707884"]
[BlackFideId "1701185"]
[WhiteElo "2284"]
[BlackElo "2400"]

1. e4 {[%clk 01:29:49]} {[%emt 00:01:05]} d6 {[%clk 01:30:51]} {[%emt
00:00:15]} 2. d4 {[%clk 01:30:15]} {[%emt 00:00:04]} Nf6 {[%clk 01:31:16]}
{[%emt 00:00:05]} 3. Nc3 {[%clk 01:30:37]} {[%emt 00:00:07]} g6 {[%clk
01:31:43]} {[%emt 00:00:05]} 4. Nf3 {[%clk 01:30:52]} {[%emt 00:00:14]} Bg7
{[%clk 01:31:37]} {[%emt 00:00:36]} 5. h3 {[%clk 01:28:58]} {[%emt 00:02:24]}
O-O {[%clk 01:30:55]} {[%emt 00:01:12]} 6. Be3 {[%clk 01:29:24]} {[%emt
00:00:04]} Nc6 {[%clk 01:30:53]} {[%emt 00:00:34]} 7. d5 {[%clk 01:28:17]}
{[%emt 00:01:37]} Nb4 {[%clk 01:29:09]} {[%emt 00:02:13]} 8. a3 {[%clk
01:25:34]} {[%emt 00:03:13]} Na6 {[%clk 01:29:33]} {[%emt 00:00:05]} 9. Bxa6
{[%clk 01:25:52]} {[%emt 00:00:12]} bxa6 {[%clk 01:29:59]} {[%emt 00:00:04]} 10.
Nd4 {[%clk 01:26:14]} {[%emt 00:00:08]} e6 {[%clk 01:24:14]} {[%emt 00:06:15]}
11. O-O {[%clk 01:08:53]} {[%emt 00:17:51]} exd5 {[%clk 01:13:38]} {[%emt
00:11:07]} 12. exd5 {[%clk 01:08:59]} {[%emt 00:00:23]} Bb7 {[%clk 01:14:02]}
{[%emt 00:00:06]} 13. Qf3 {[%clk 01:08:36]} {[%emt 00:00:53]} Re8 {[%clk
01:12:32]} {[%emt 00:02:01]} 14. Rad1 {[%clk 01:01:50]} {[%emt 00:07:16]} Nd7
{[%clk 01:00:13]} {[%emt 00:12:47]} 15. Nc6 {[%clk 00:45:05]} {[%emt 00:17:15]}
Ne5 {[%clk 00:49:49]} {[%emt 00:10:55]} 16. Nxe5 {[%clk 00:44:01]} {[%emt
00:01:33]} dxe5 {[%clk 00:41:44]} {[%emt 00:08:36]} 17. Ne4 {[%clk 00:36:18]}
{[%emt 00:08:12]} f5 {[%clk 00:41:49]} {[%emt 00:00:25]} 18. Nc5 {[%clk
00:36:43]} {[%emt 00:00:05]} Rb8 {[%clk 00:41:23]} {[%emt 00:00:57]} 19. Qe2
{[%clk 00:35:10]} {[%emt 00:02:02]} Bc8 {[%clk 00:31:34]} {[%emt 00:10:19]} 20.
Qc4 {[%clk 00:26:43]} {[%emt 00:08:56]} Kh8 {[%clk 00:26:51]} {[%emt 00:05:15]}
21. Nxa6 {[%clk 00:19:49]} {[%emt 00:07:24]} Bxa6 {[%clk 00:24:05]} {[%emt
00:03:15]} 22. Qxa6 {[%clk 00:20:13]} {[%emt 00:00:06]} Rxb2 {[%clk 00:24:15]}
{[%emt 00:00:20]} 23. d6 {[%clk 00:09:43]} {[%emt 00:11:00]} cxd6 {[%clk
00:12:24]} {[%emt 00:12:21]} 24. Rxd6 {[%clk 00:08:45]} {[%emt 00:01:28]} Qc8
{[%clk 00:12:44]} {[%emt 00:00:09]} 25. Qxc8 {[%clk 00:07:07]} {[%emt
00:02:08]} Rxc8 {[%clk 00:12:54]} {[%emt 00:00:21]} 26. Rfd1 {[%clk 00:07:33]}
{[%emt 00:00:04]} Bf8 {[%clk 00:13:07]} {[%emt 00:00:17]} 27. Rd8 {[%clk
00:05:23]} {[%emt 00:02:40]} Rbb8 {[%clk 00:12:58]} {[%emt 00:00:39]} 28. R8d5
{[%clk 00:04:18]} {[%emt 00:01:35]} f4 {[%clk 00:09:20]} {[%emt 00:04:07]} 29.
Bxa7 {[%clk 00:04:21]} {[%emt 00:00:27]} Rb7 {[%clk 00:09:35]} {[%emt
00:00:16]} 30. Rd7 {[%clk 00:03:21]} {[%emt 00:01:30]} Rxd7 {[%clk 00:08:54]}
{[%emt 00:01:10]} 31. Rxd7 {[%clk 00:03:45]} {[%emt 00:00:06]} Bxa3 {[%clk
00:09:08]} {[%emt 00:00:16]} 32. Rd5 {[%clk 00:03:20]} {[%emt 00:00:54]} Bb2
{[%clk 00:05:46]} {[%emt 00:03:54]} 33. Rd2 {[%clk 00:03:12]} {[%emt 00:00:37]}
Rc7 {[%clk 00:04:37]} {[%emt 00:01:40]} 34. Bb6 {[%clk 00:01:45]} {[%emt
00:01:57]} Rc6 {[%clk 00:04:07]} {[%emt 00:01:00]} 35. Ba7 {[%clk 00:01:48]}
{[%emt 00:00:27]} Kg7 {[%clk 00:03:46]} {[%emt 00:00:52]} 36. c4 {[%clk
00:01:04]} {[%emt 00:01:15]} Bc3 {[%clk 00:02:39]} {[%emt 00:01:36]} 37. Rd7+
{[%clk 00:01:27]} {[%emt 00:00:06]} Kf6 {[%clk 00:03:05]} {[%emt 00:00:04]} 38.
c5 {[%clk 00:01:03]} {[%emt 00:00:55]} h5 {[%clk 00:02:44]} {[%emt 00:00:51]}
39. Bb6 {[%clk 00:00:36]} {[%emt 00:00:57]} Bd4 {[%clk 00:02:57]} {[%emt
00:00:17]} 40. Ra7 {[%clk 00:00:32]} {[%emt 00:00:33]} Ke6 {[%clk 00:01:52]}
{[%emt 00:01:35]} 41. Kf1 {[%clk 00:24:57]} {[%emt 00:06:06]} e4 {[%clk
00:25:01]} {[%emt 00:07:22]} 42. Rc7 {[%clk 00:12:43]} {[%emt 00:12:43]} Rxc7
{[%clk 00:22:15]} {[%emt 00:03:16]} 43. Bxc7 {[%clk 00:13:08]} {[%emt
00:00:06]} f3 {[%clk 00:22:40]} {[%emt 00:00:05]} 44. gxf3 {[%clk 00:04:19]}
{[%emt 00:09:18]} exf3 {[%clk 00:22:49]} {[%emt 00:00:20]} 45. Bd6 {[%clk
00:04:33]} {[%emt 00:00:15]} Kd5 {[%clk 00:21:51]} {[%emt 00:01:29]} 46. Kg1
{[%clk 00:02:20]} {[%emt 00:02:43]} Bxc5 {[%clk 00:21:39]} {[%emt 00:00:43]} 47.
Bc7 {[%clk 00:02:17]} {[%emt 00:00:31]} Bd4 {[%clk 00:20:48]} {[%emt 00:01:24]}
48. Kf1 {[%clk 00:02:18]} {[%emt 00:00:29]} Ke4 {[%clk 00:21:11]} {[%emt
00:00:06]} 49. Kg1 {[%clk 00:02:18]} {[%emt 00:00:29]} Be5 {[%clk 00:21:02]}
{[%emt 00:00:40]} 50. Bd8 {[%clk 00:02:38]} {[%emt 00:00:10]} Kd3 {[%clk
00:17:43]} {[%emt 00:03:48]} 51. Kf1 {[%clk 00:03:04]} {[%emt 00:00:05]} Bf4
{[%clk 00:17:53]} {[%emt 00:00:20]} 52. Be7 {[%clk 00:03:22]} {[%emt 00:00:11]}
Kd4 {[%clk 00:11:14]} {[%emt 00:07:10]} 53. Kg1 {[%clk 00:03:23]} {[%emt
00:00:29]} Ke4 {[%clk 00:11:38]} {[%emt 00:00:06]} 54. Bd8 {[%clk 00:03:35]}
{[%emt 00:00:18]} Kf5 {[%clk 00:11:26]} {[%emt 00:00:41]} 55. Be7 {[%clk
00:03:43]} {[%emt 00:00:23]} g5 {[%clk 00:11:33]} {[%emt 00:00:23]} 56. Bd8
{[%clk 00:03:43]} {[%emt 00:00:30]} Bd6 {[%clk 00:11:24]} {[%emt 00:00:39]} 57.
Kh1 {[%clk 00:03:10]} {[%emt 00:00:56]} g4 {[%clk 00:11:32]} {[%emt 00:00:30]}
58. hxg4+ {[%clk 00:03:35]} {[%emt 00:00:04]} Kxg4 {[%clk 00:11:57]} {[%emt
00:00:05]} 59. Kg1 {[%clk 00:03:21]} {[%emt 00:00:42]} h4 {[%clk 00:11:57]}
{[%emt 00:00:32]} 60. Bf6 {[%clk 00:03:21]} {[%emt 00:00:29]} h3 {[%clk
00:12:21]} {[%emt 00:00:07]} 61. Bd4 {[%clk 00:02:07]} {[%emt 00:01:43]} Kf5
{[%clk 00:12:43]} {[%emt 00:00:09]} 62. Bb6 {[%clk 00:01:41]} {[%emt 00:00:56]}
Ke4 {[%clk 00:13:00]} {[%emt 00:00:12]} 63. Ba7 {[%clk 00:01:42]} {[%emt
00:00:30]} Kd3 {[%clk 00:13:18]} {[%emt 00:00:12]} 64. Bb6 {[%clk 00:01:57]}
{[%emt 00:00:17]} Be5 {[%clk 00:13:34]} {[%emt 00:00:12]} 65. Ba7 {[%clk
00:02:05]} {[%emt 00:00:22]} Ke2 {[%clk 00:11:59]} {[%emt 00:02:04]} 66. Bb6
{[%clk 00:02:17]} {[%emt 00:00:19]} Bd6 {[%clk 00:10:05]} {[%emt 00:02:24]} 67.
Ba7 {[%clk 00:02:36]} {[%emt 00:00:11]} Bf4 {[%clk 00:10:29]} {[%emt 00:00:07]}
68. Bb6 {[%clk 00:02:33]} {[%emt 00:00:33]} Bd6 {[%clk 00:10:25]} {[%emt
00:00:34]} 69. Ba7 {[%clk 00:02:49]} {[%emt 00:00:14]} Bb4 {[%clk 00:10:47]}
{[%emt 00:00:07]} 70. Kh2 {[%clk 00:01:43]} {[%emt 00:01:36]} Be1 {[%clk
00:11:09]} {[%emt 00:00:08]} 71. Kxh3 {[%clk 00:02:04]} {[%emt 00:00:10]} Bxf2
{[%clk 00:11:34]} {[%emt 00:00:04]} 72. Bb8 {[%clk 00:02:28]} {[%emt 00:00:07]}
Be1 {[%clk 00:11:49]} {[%emt 00:00:15]} 73. Ba7 {[%clk 00:02:09]} {[%emt
00:00:49]} Bd2 {[%clk 00:12:05]} {[%emt 00:00:14]} 0-1

[Event "The Elitserien 2024/25: round 1 - 3"]
[Site "Scandic Infra City, Kanalvagen 10, Upplands Vasby, Sweden"]
[Date "2024.10.04"]
[Round "1.28"]
[White "Domingo Nunez, Ruben"]
[Black "Van Hengel, Hugo"]
[Result "1-0"]
[TimeControl "90 minutes for 40 moves + 30 minutes for the rest of the game + 30 seconds per move from move one."]
[WhiteTitle "IM"]
[BlackTitle "FM"]
[WhiteFideId "22245570"]
[BlackFideId "1008161"]
[WhiteElo "2390"]
[BlackElo "2236"]

1. e4 {[%clk 01:28:08]} {[%emt 00:02:51]} e5 {[%clk 01:30:37]} {[%emt
00:00:24]} 2. Nc3 {[%clk 01:28:33]} {[%emt 00:00:05]} Nf6 {[%clk 01:30:47]}
{[%emt 00:00:20]} 3. Bc4 {[%clk 01:28:59]} {[%emt 00:00:05]} Nxe4 {[%clk
01:27:46]} {[%emt 00:03:30]} 4. Qh5 {[%clk 01:29:19]} {[%emt 00:00:10]} Nd6
{[%clk 01:27:57]} {[%emt 00:00:18]} 5. Bb3 {[%clk 01:29:44]} {[%emt 00:00:06]}
Nc6 {[%clk 01:26:19]} {[%emt 00:02:07]} 6. Nb5 {[%clk 01:30:10]} {[%emt
00:00:05]} g6 {[%clk 01:26:31]} {[%emt 00:00:17]} 7. Qf3 {[%clk 01:30:28]}
{[%emt 00:00:11]} f5 {[%clk 01:26:53]} {[%emt 00:00:09]} 8. Qd5 {[%clk
01:30:54]} {[%emt 00:00:04]} Qe7 {[%clk 01:27:14]} {[%emt 00:00:10]} 9. Nxc7+
{[%clk 01:31:19]} {[%emt 00:00:06]} Kd8 {[%clk 01:27:39]} {[%emt 00:00:04]} 10.
Nxa8 {[%clk 01:31:45]} {[%emt 00:00:04]} b6 {[%clk 01:27:58]} {[%emt 00:00:12]}
11. Ne2 {[%clk 01:32:11]} {[%emt 00:00:02]} Bb7 {[%clk 01:28:10]} {[%emt
00:00:18]} 12. Qd3 {[%clk 01:32:37]} {[%emt 00:00:04]} Bg7 {[%clk 01:19:42]}
{[%emt 00:08:59]} 13. O-O {[%clk 01:25:16]} {[%emt 00:07:51]} f4 {[%clk
01:15:57]} {[%emt 00:04:15]} 14. Qh3 {[%clk 00:21:03]} {[%emt 01:04:43]} f3
{[%clk 00:35:36]} {[%emt 00:40:50]} 15. Nc3 {[%clk 00:15:09]} {[%emt 00:06:26]}
fxg2 {[%clk 00:32:13]} {[%emt 00:03:52]} 16. Qxg2 {[%clk 00:15:29]} {[%emt
00:00:10]} Bxa8 {[%clk 00:17:10]} {[%emt 00:15:32]} 17. d4 {[%clk 00:15:22]}
{[%emt 00:00:38]} Bb7 {[%clk 00:09:49]} {[%emt 00:07:50]} 18. Bg5 {[%clk
00:15:33]} {[%emt 00:00:19]} Bf6 {[%clk 00:07:36]} {[%emt 00:02:43]} 19. Nd5
{[%clk 00:15:52]} {[%emt 00:00:10]} Nxd4 {[%clk 00:06:28]} {[%emt 00:01:38]} 20.
Bxf6 {[%clk 00:13:07]} {[%emt 00:03:15]} Qxf6 {[%clk 00:05:39]} {[%emt
00:01:21]} 21. Nxf6 {[%clk 00:13:31]} {[%emt 00:00:05]} Bxg2 {[%clk 00:04:44]}
{[%emt 00:01:25]} 22. Kxg2 {[%clk 00:13:55]} {[%emt 00:00:06]} Rf8 {[%clk
00:04:33]} {[%emt 00:00:40]} 23. Ng4 {[%clk 00:10:05]} {[%emt 00:04:21]} Nf3
{[%clk 00:04:22]} {[%emt 00:00:41]} 24. Rad1 {[%clk 00:09:21]} {[%emt
00:01:14]} 1-0